[Event "EYCC 2017"]
[Site "Mamaia"]
[Date "2017.09.07"]
[Round "3"]
[White "Butolo, Alexandru-Mircea"]
[Black "Verma, Shlok"]
[Result "0-1"]
[ECO "D05"]
[WhiteElo "1309"]
[BlackElo "1658"]
[Annotator "NA"]
[PlyCount "154"]
[EventDate "2017.??.??"]
[EventType "swiss"]
[EventCountry "ROU"]
[SourceTitle "playchess.com"]
[Source "ChessBase"]
[SourceQuality "1"]
[TimeControl "40/5400+30:1800+30"]

1. d4 {[%emt 0:00:00]} Nf6 {[%emt 0:01:26]} 2. Nf3 {[%emt 0:00:00]} d5 {[%emt 0:00:13]} 3. e3 {[%emt 0:00:02]} e6 {[%emt 0:00:30]} 4. Bd3 {[%emt 0:00:17]} c5 {[%emt 0:01:31]} 5. b3 {[%emt 0:00:34]} Nc6 {[%emt 0:01:37]} 6. Bb2 {[%emt 0:00:36]} Bd6 {[%emt 0:00:31]} 7. Nbd2 {[%emt 0:00:52]} Bd7 {[%emt 0:01:35]} 8. O-O {[%emt 0:00:36]} cxd4 {[%emt 0:02:21]} 9. exd4 {[%emt 0:00:17]} Qc7 {[%emt 0:04:15]} 10. Re1 {[%emt 0:01:41]} Nb4 {[%emt 0:02:14]} 11. Ne5 {[%emt 0:02:31]} Nxd3 {[%emt 0:05:18]} 12. cxd3 {[%emt 0:00:15]} Rc8 {[%emt 0:02:38]} 13. Rc1 {[%emt 0:01:11]} Bc6 {[%emt 0:00:19]} 14. f4 {[%emt 0:02:16]} O-O {[%emt 0:09:20]} 15. Qf3 {[%emt 0:05:05]} Bb4 {[%emt 0:01:35]} 16. Rc2 {[%emt 0:01:57]} Qa5 {[%emt 0:01:28]} 17. Qe2 {[%emt 0:04:47]} Bxd2 {[%emt 0:05:07]} 18. Qxd2 {[%emt 0:01:17]} Qxd2 {[%emt 0:06:57]} 19. Rxd2 {[%emt 0:00:42]} Bb5 {[%emt 0:01:28]} 20. a4 {[%emt 0:01:13]} Ba6 {[%emt 0:00:04]} 21. b4 {[%emt 0:02:20]} b5 {[%emt 0:00:20]} 22. Ra1 {[%emt 0:02:04]} Rc7 {[%emt 0:01:02]} 23. axb5 {[%emt 0:06:15]} Bxb5 {[%emt 0:00:08]} 24. Ra5 {[%emt 0:00:41]} a6 {[%emt 0:00:04]} 25. g4 {[%emt 0:01:48]} Rfc8 {[%emt 0:00:28]} 26. Ra1 {[%emt 0:01:08]} Rc2 {[%emt 0:00:51]} 27. Rad1 {[%emt 0:00:41]} Ba4 {[%emt 0:01:04]} 28. Rxc2 {[%emt 0:00:56]} Rxc2 {[%emt 0:00:10]} 29. Ra1 {[%emt 0:02:17]} Bb5 {[%emt 0:01:00]} 30. Rb1 {[%emt 0:05:21]} Ne8 {[%emt 0:01:33]} 31. Nf3 {[%emt 0:07:30]} Bxd3 {[%emt 0:02:59]} 32. Ne1 {[%emt 0:00:30]} Rd2 {[%emt 0:01:31]} 33. Rc1 {[%emt 0:02:33]} Bc4 {[%emt 0:00:55]} 34. Bc3 {[%emt 0:01:30]} Re2 {[%emt 0:02:00]} 35. Ng2 {[%emt 0:01:20]} Nd6 {[%emt 0:00:55]} 36. Re1 {[%emt 0:03:56]} Rc2 {[%emt 0:00:45]} 37. Ba1 {[%emt 0:01:19]} Ne4 {[%emt 0:00:48]} 38. Ne3 {[%emt 0:00:55]} Re2 {[%emt 0:00:43]} 39. Rxe2 {[%emt 0:00:42]} Bxe2 {[%emt 0:00:04]} 40. f5 {[%emt 0:00:00]} Kf8 {[%emt 0:00:33]} 41. g5 {[%emt 0:01:23]} Nxg5 {[%emt 0:00:30]} 42. fxe6 {[%emt 0:00:24]} fxe6 {[%emt 0:00:14]} 43. Kf2 {[%emt 0:00:19]} Bb5 {[%emt 0:00:21]} 44. Ng4 {[%emt 0:00:55]} Nf7 {[%emt 0:01:27]} 45. Ne5 {[%emt 0:00:24]} Nxe5 {[%emt 0:01:27]} 46. dxe5 {[%emt 0:00:12]} Kf7 {[%emt 0:00:11]} 47. Ke3 {[%emt 0:00:18]} g5 {[%emt 0:00:43]} 48. Kf3 {[%emt 0:00:55]} Kg6 {[%emt 0:00:18]} 49. Kg4 {[%emt 0:00:15]} h5+ {[%emt 0:00:06]} 50. Kg3 {[%emt 0:00:26]} Kf5 {[%emt 0:00:02]} 51. Kf3 {[%emt 0:00:29]} g4+ {[%emt 0:00:42]} 52. Ke3 {[%emt 0:00:12]} h4 {[%emt 0:01:38]} 53. Bc3 {[%emt 0:00:22]} g3 {[%emt 0:01:27]} 54. hxg3 {[%emt 0:00:33]} hxg3 {[%emt 0:00:10]} 55. Kf3 {[%emt 0:00:16]} g2 {[%emt 0:00:05]} 56. Kxg2 {[%emt 0:00:26]} Ke4 {[%emt 0:00:06]} 57. Kg3 {[%emt 0:00:18]} d4 {[%emt 0:00:12]} 58. Bb2 {[%emt 0:00:28]} Kxe5 {[%emt 0:00:48]} 59. Kf3 {[%emt 0:00:11]} Kd5 {[%emt 0:00:08]} 60. Kf4 {[%emt 0:00:38]} e5+ {[%emt 0:00:09]} 61. Kf3 {[%emt 0:00:09]} e4+ {[%emt 0:00:16]} 62. Kf2 {[%emt 0:00:09]} Kc4 {[%emt 0:00:14]} 63. Ba1 {[%emt 0:00:13]} Kd3 {[%emt 0:00:10]} 64. Ke1 {[%emt 0:00:16]} e3 {[%emt 0:00:16]} 65. Bb2 {[%emt 0:00:17]} Kc4 {[%emt 0:00:11]} 66. Ba1 {[%emt 0:00:15]} d3 {[%emt 0:00:13]} 67. Bb2 {[%emt 0:00:10]} d2+ {[%emt 0:00:26]} 68. Ke2 {[%emt 0:00:19]} Ba4 {[%emt 0:00:06]} 69. Kxe3 {[%emt 0:00:10]} d1=Q {[%emt 0:00:07]} 70. Ke4 {[%emt 0:00:18]} Qe2+ {[%emt 0:00:03]} 71. Kf4 {[%emt 0:00:12]} Qxb2 {[%emt 0:00:08]} 72. Kf3 {[%emt 0:00:11]} Qe5 {[%emt 0:00:12]} 73. Kf2 {[%emt 0:00:10]} Qe4 {[%emt 0:00:13]} 74. Kf1 {[%emt 0:00:06]} Qc2 {[%emt 0:00:07]} 75. Kg1 {[%emt 0:00:12]} Qe2 {[%emt 0:00:18]} 76. Kh1 {[%emt 0:00:07]} Bc6+ {[%emt 0:00:08]} 77. Kg1 {[%emt 0:00:14]} Qg2# {[%emt 0:00:02]} 0-1

[Event "EYCC 2017"]
[Site "Mamaia"]
[Date "2017.09.07"]
[Round "3"]
[White "Keskinler, Ela"]
[Black "Darie, Cleopatra-Iuliana"]
[Result "1-0"]
[ECO "C26"]
[WhiteElo "1276"]
[BlackElo "1120"]
[Annotator "NA"]
[PlyCount "61"]
[EventDate "2017.??.??"]
[EventType "swiss"]
[EventCountry "ROU"]
[SourceTitle "playchess.com"]
[Source "ChessBase"]
[SourceQuality "1"]
[TimeControl "40/5400+30:1800+30"]

1. e4 {[%emt 0:00:00]} e5 {[%emt 0:00:12]} 2. Nc3 {[%emt 0:00:00]} Nf6 {[%emt 0:00:34]} 3. g3 {[%emt 0:00:16]} Bc5 {[%emt 0:00:23]} 4. Bg2 {[%emt 0:00:56]} O-O {[%emt 0:01:00]} 5. Nge2 {[%emt 0:00:21]} Nc6 {[%emt 0:00:56]} 6. O-O {[%emt 0:00:21]} d6 {[%emt 0:01:29]} 7. h3 {[%emt 0:01:53]} Be6 {[%emt 0:01:09]} 8. Kh2 {[%emt 0:00:12]} d5 {[%emt 0:02:36]} 9. exd5 {[%emt 0:04:30]} Nxd5 {[%emt 0:00:22]} 10. Ne4 {[%emt 0:12:02]} Bb6 {[%emt 0:04:51]} 11. f4 {[%emt 0:08:13]} Qd7 {[%emt 0:15:45]} 12. b3 {[%emt 0:06:21]} Rfd8 {[%emt 0:12:43]} 13. Bb2 {[%emt 0:00:37]} exf4 {[%emt 0:02:44]} 14. Nxf4 {[%emt 0:01:36]} Nxf4 {[%emt 0:00:12]} 15. Rxf4 {[%emt 0:00:11]} f5 {[%emt 0:00:54]} 16. Ng5 {[%emt 0:00:58]} Bd5 {[%emt 0:02:00]} 17. Qh5 {[%emt 0:04:08]} g6 {[%emt 0:08:34]} 18. Bxd5+ {[%emt 0:01:21]} Kf8 {[%emt 0:13:44]} 19. Nxh7+ {[%emt 0:01:04]} Ke7 {[%emt 0:03:37]} 20. Re1+ {[%emt 0:00:09]} Kd6 {[%emt 0:00:37]} 21. Qxg6+ {[%emt 0:00:26]} Kc5 {[%emt 0:02:08]} 22. Ba3+ {[%emt 0:02:16]} Nb4 {[%emt 0:02:14]} 23. Bxb4+ {[%emt 0:00:11]} Kb5 {[%emt 0:01:28]} 24. Bc4+ {[%emt 0:00:57]} Kxb4 {[%emt 0:00:28]} 25. Be6+ {[%emt 0:00:06]} Kb5 {[%emt 0:01:40]} 26. Bxd7+ {[%emt 0:00:06]} c6 27. Qxf5+ {[%emt 0:00:08]} Bc5 {[%emt 0:01:42]} 28. Rc4 {[%emt 0:00:59]} b6 {[%emt 0:00:45]} 29. Qd5 {[%emt 0:00:44]} Rab8 {[%emt 0:03:53]} 30. Qxc6+ {[%emt 0:00:33]} Ka6 31. Ra4# {Kb5 Rc4+ Ka6 Ra4#} 1-0

[Event "EYCC 2017"]
[Site "Mamaia"]
[Date "2017.09.07"]
[Round "3"]
[White "Natoli, Alessia"]
[Black "Smietanska, Wiktoria"]
[Result "1/2-1/2"]
[ECO "B11"]
[WhiteElo "1216"]
[BlackElo "1446"]
[Annotator "NA"]
[PlyCount "86"]
[EventDate "2017.??.??"]
[EventType "swiss"]
[EventCountry "ROU"]
[SourceTitle "playchess.com"]
[Source "ChessBase"]
[SourceQuality "1"]
[TimeControl "40/5400+30:1800+30"]

1. e4 {[%emt 0:00:00]} c6 {[%emt 0:00:04]} 2. Nc3 {[%emt 0:00:00]} d5 {[%emt 0:00:09]} 3. Nf3 {[%emt 0:00:03]} Bg4 {[%emt 0:00:09]} 4. h3 {[%emt 0:00:24]} Bxf3 {[%emt 0:00:09]} 5. Qxf3 {[%emt 0:00:10]} Nf6 {[%emt 0:00:17]} 6. e5 {[%emt 0:02:08]} Nfd7 {[%emt 0:00:27]} 7. d4 {[%emt 0:00:38]} e6 {[%emt 0:04:56]} 8. Ne2 {[%emt 0:02:06]} c5 {[%emt 0:12:53]} 9. c3 {[%emt 0:00:40]} Nc6 {[%emt 0:04:20]} 10. Qd3 {[%emt 0:03:14]} cxd4 {[%emt 0:03:22]} 11. cxd4 {[%emt 0:00:19]} Qb6 {[%emt 0:09:56]} 12. g3 {[%emt 0:03:09]} Bb4+ {[%emt 0:03:28]} 13. Bd2 {[%emt 0:00:59]} Bxd2+ {[%emt 0:01:30]} 14. Qxd2 {[%emt 0:00:12]} Qb4 {[%emt 0:02:57]} 15. Qxb4 {[%emt 0:02:21]} Nxb4 {[%emt 0:00:30]} 16. Kd2 {[%emt 0:00:30]} Rc8 {[%emt 0:00:57]} 17. Rc1 {[%emt 0:00:53]} Rxc1 {[%emt 0:03:55]} 18. Nxc1 {[%emt 0:01:19]} Ke7 {[%emt 0:04:31]} 19. a3 {[%emt 0:01:10]} Nc6 {[%emt 0:00:14]} 20. Nb3 {[%emt 0:00:30]} Rc8 {[%emt 0:01:08]} 21. Bd3 {[%emt 0:00:56]} g6 {[%emt 0:01:47]} 22. Rc1 {[%emt 0:00:33]} Kd8 {[%emt 0:02:37]} 23. f4 {[%emt 0:01:59]} Ne7 {[%emt 0:04:33]} 24. Rxc8+ {[%emt 0:00:18]} Kxc8 {[%emt 0:00:28]} 25. Bb5 {[%emt 0:01:13]} b6 {[%emt 0:01:18]} 26. Kc3 {[%emt 0:01:17]} Nf8 {[%emt 0:02:14]} 27. Be8 {[%emt 0:04:52]} Nf5 {[%emt 0:01:48]} 28. g4 {[%emt 0:02:09]} Ne7 {[%emt 0:00:46]} 29. Bxf7 {[%emt 0:01:50]} Kd7 {[%emt 0:00:59]} 30. Nd2 {[%emt 0:01:40]} Nc6 {[%emt 0:02:50]} 31. Nf3 {[%emt 0:00:31]} Nd8 {[%emt 0:00:23]} 32. Bg8 {[%emt 0:00:42]} Ke7 {[%emt 0:02:38]} 33. Nh4 {[%emt 0:01:45]} Ke8 {[%emt 0:03:50]} 34. f5 {[%emt 0:01:06]} Ke7 {[%emt 0:03:12]} 35. fxe6 {[%emt 0:00:57]} Ndxe6 {[%emt 0:00:14]} 36. Bxe6 {[%emt 0:00:10]} Nxe6 {[%emt 0:00:08]} 37. Nf3 {[%emt 0:02:17]} h6 {[%emt 0:04:26]} 38. h4 {[%emt 0:00:32]} a6 {[%emt 0:01:09]} 39. g5 {[%emt 0:01:13]} h5 {[%emt 0:02:39]} 40. b3 {[%emt 0:00:00]} Ng7 {[%emt 0:00:43]} 41. a4 {[%emt 0:01:37]} Nf5 {[%emt 0:02:37]} 42. Kd3 {[%emt 0:04:01]} Ke6 {[%emt 0:01:28]} 43. b4 {[%emt 0:01:11]} Kd7 {[%emt 0:00:24]} 1/2-1/2

[Event "EYCC 2017"]
[Site "Mamaia"]
[Date "2017.09.07"]
[Round "3"]
[White "Kirtadze, Anastasia"]
[Black "Abaszada, Suada"]
[Result "0-1"]
[ECO "A40"]
[WhiteElo "1193"]
[BlackElo "1295"]
[Annotator "NA"]
[PlyCount "138"]
[EventDate "2017.??.??"]
[EventType "swiss"]
[EventCountry "ROU"]
[SourceTitle "playchess.com"]
[Source "ChessBase"]
[SourceQuality "1"]
[TimeControl "40/5400+30:1800+30"]

1. d4 {[%emt 0:00:00]} Nf6 {[%emt 0:01:57]} 2. c4 {[%emt 0:00:00]} e6 {[%emt 0:01:05]} 3. g3 {[%emt 0:00:05]} Be7 {[%emt 0:05:48]} 4. Nf3 {[%emt 0:00:25]} O-O {[%emt 0:01:31]} 5. Bg2 {[%emt 0:00:23]} d5 {[%emt 0:01:43]} 6. O-O {[%emt 0:00:37]} Nc6 {[%emt 0:01:49]} 7. Nc3 {[%emt 0:10:12]} b6 {[%emt 0:03:32]} 8. b3 {[%emt 0:24:28]} Ne4 {[%emt 0:07:11]} 9. Bb2 {[%emt 0:09:48]} Bf6 {[%emt 0:05:00]} 10. e3 {[%emt 0:03:16]} Nxc3 {[%emt 0:01:44]} 11. Bxc3 {[%emt 0:00:22]} Ba6 {[%emt 0:00:53]} 12. Nd2 {[%emt 0:01:55]} b5 {[%emt 0:19:44]} 13. Re1 {[%emt 0:09:59]} Rb8 {[%emt 0:09:39]} 14. cxb5 {[%emt 0:04:09]} Bxb5 {[%emt 0:03:27]} 15. Bf1 {[%emt 0:02:11]} Bxf1 {[%emt 0:00:55]} 16. Kxf1 {[%emt 0:00:23]} e5 {[%emt 0:02:06]} 17. dxe5 {[%emt 0:01:08]} Bxe5 {[%emt 0:00:26]} 18. Bxe5 {[%emt 0:02:10]} Nxe5 {[%emt 0:00:01]} 19. Qe2 {[%emt 0:00:20]} Qf6 {[%emt 0:02:54]} 20. Kg2 {[%emt 0:01:04]} Rfe8 {[%emt 0:02:34]} 21. Nf3 {[%emt 0:00:39]} c5 {[%emt 0:06:43]} 22. Nxe5 {[%emt 0:00:41]} Rxe5 {[%emt 0:00:47]} 23. Qd2 {[%emt 0:01:56]} Qc6 {[%emt 0:04:20]} 24. f3 {[%emt 0:01:30]} Rbe8 {[%emt 0:01:02]} 25. g4 {[%emt 0:00:37]} Qe6 {[%emt 0:01:27]} 26. Rac1 {[%emt 0:00:42]} d4 {[%emt 0:02:14]} 27. e4 {[%emt 0:00:11]} Qg6 {[%emt 0:00:50]} 28. Rcd1 {[%emt 0:01:11]} h5 {[%emt 0:00:53]} 29. h3 {[%emt 0:00:07]} hxg4 {[%emt 0:00:31]} 30. hxg4 {[%emt 0:00:11]} Qg5 {[%emt 0:01:30]} 31. Qf2 {[%emt 0:00:31]} Rd8 {[%emt 0:00:18]} 32. Rd3 {[%emt 0:00:25]} Qg6 {[%emt 0:00:36]} 33. Qh4 {[%emt 0:00:37]} Qg5 {[%emt 0:02:09]} 34. Qh3 {[%emt 0:00:32]} f5 {[%emt 0:02:02]} 35. Qg3 {[%emt 0:02:14]} f4 {[%emt 0:01:46]} 36. Qf2 {[%emt 0:00:39]} Rd6 {[%emt 0:00:52]} 37. Rh1 {[%emt 0:01:16]} Rh6 {[%emt 0:00:05]} 38. Rdd1 {[%emt 0:00:14]} Ree6 {[%emt 0:02:22]} 39. Rxh6 {[%emt 0:03:03]} Rxh6 {[%emt 0:00:11]} 40. Rc1 {[%emt 0:00:00]} Rc6 {[%emt 0:01:23]} 41. Rh1 {[%emt 0:01:35]} d3 {[%emt 0:01:59]} 42. Rh5 {[%emt 0:01:06]} Qe7 {[%emt 0:00:46]} 43. Rd5 {[%emt 0:01:13]} c4 {[%emt 0:22:04]} 44. bxc4 {[%emt 0:00:35]} Qa3 {[%emt 0:00:57]} 45. c5 {[%emt 0:02:01]} Qc3 {[%emt 0:06:57]} 46. Kh2 {[%emt 0:07:34]} Qc2 {[%emt 0:00:41]} 47. Kg2 {[%emt 0:00:27]} Rh6 {[%emt 0:00:59]} 48. Rh5 {[%emt 0:03:16]} Rxh5 {[%emt 0:00:49]} 49. gxh5 {[%emt 0:00:10]} d2 {[%emt 0:00:02]} 50. c6 {[%emt 0:00:12]} d1=Q {[%emt 0:00:29]} 51. Qxc2 {[%emt 0:00:15]} Qxc2+ {[%emt 0:00:13]} 52. Kh3 {[%emt 0:00:05]} Qxc6 {[%emt 0:00:05]} 53. Kg4 {[%emt 0:00:07]} Qh6 {[%emt 0:00:21]} 54. Kh4 {[%emt 0:00:07]} g5+ {[%emt 0:00:30]} 55. Kh3 {[%emt 0:00:05]} Qxh5+ {[%emt 0:00:08]} 56. Kg2 {[%emt 0:00:09]} g4 {[%emt 0:00:12]} 57. fxg4 {[%emt 0:00:07]} Qxg4+ {[%emt 0:00:15]} 58. Kf2 {[%emt 0:00:05]} Qg3+ {[%emt 0:00:15]} 59. Ke2 {[%emt 0:00:06]} Qe3+ {[%emt 0:00:18]} 60. Kd1 {[%emt 0:00:06]} Qf2 {[%emt 0:00:24]} 61. e5 {[%emt 0:00:07]} Qd4+ {[%emt 0:00:26]} 62. Kc2 {[%emt 0:00:09]} Qxe5 {[%emt 0:00:11]} 63. Kb3 {[%emt 0:00:05]} Qd4 {[%emt 0:00:48]} 64. a4 {[%emt 0:00:05]} a5 {[%emt 0:00:16]} 65. Kc2 {[%emt 0:00:35]} f3 {[%emt 0:00:10]} 66. Kb3 {[%emt 0:00:19]} f2 {[%emt 0:00:05]} 67. Kc2 {[%emt 0:00:05]} f1=Q {[%emt 0:00:21]} 68. Kb3 {[%emt 0:00:04]} Qb1+ {[%emt 0:00:20]} 69. Ka3 {[%emt 0:00:07]} Qdb4# 0-1

[Event "EYCC 2017"]
[Site "Mamaia"]
[Date "2017.09.07"]
[Round "3"]
[White "Kusakina, Uliana"]
[Black "Fedorova, Olesya"]
[Result "1-0"]
[ECO "B27"]
[WhiteElo "1157"]
[BlackElo "1534"]
[Annotator "NA"]
[PlyCount "175"]
[EventDate "2017.??.??"]
[EventType "swiss"]
[EventCountry "ROU"]
[SourceTitle "playchess.com"]
[Source "ChessBase"]
[SourceQuality "1"]
[TimeControl "40/5400+30:1800+30"]

1. e4 c5 2. Nf3 g6 3. d4 Bg7 4. Be3 d6 5. Nc3 cxd4 6. Bxd4 Nf6 7. Bc4 O-O 8. O-O Nc6 9. h3 Nxd4 10. Qxd4 a6 11. Qe3 b5 12. Bd3 Bb7 13. Ne2 d5 14. e5 Ne4 15. Ng3 Nxg3 16. fxg3 e6 17. Rae1 Qc7 18. c3 Rac8 19. Kh1 Qc5 20. Nd4 b4 21. Rc1 Qc7 22. Rfe1 Qa5 23. cxb4 Qxb4 24. Rxc8 Rxc8 25. b3 Qa3 26. Bb1 Qb2 27. Qf4 Qc3 28. Rf1 Rf8 29. g4 g5 30. Qf2 Bc8 31. Re1 Qc7 32. Qg3 f6 33. Nf3 fxe5 34. Nxg5 h6 35. Nf3 Bb7 36. g5 h5 37. Bg6 Qe7 38. Nxe5 Bxe5 39. Qxe5 Bc8 40. Bxh5 Qg7 41. Qg3 Rf5 42. h4 Qf8 43. Bf3 Qb4 44. Bg4 Rf4 45. Bxe6+ Bxe6 46. Rxe6 Rxh4+ 47. Kg1 Qd4+ 48. Qe3 Qa1+ 49. Kf2 Qd4 50. Qxd4 Rxd4 51. Rxa6 Rg4 52. Ra5 Rxg5 53. Rc5 Kf7 54. a4 Ke6 55. a5 Kd6 56. Rb5 Kc6 57. Rb6+ Kc7 58. Rb4 d4 59. Rxd4 Rxa5 60. g4 Rg5 61. Kf3 Kc6 62. Rf4 Kd6 63. Rf5 Rg7 64. b4 Ke6 65. Kf4 Rc7 66. Rc5 Rd7 67. Re5+ Kf6 68. g5+ Kg7 69. b5 Rd1 70. Kf5 Rd6 71. Re7+ Kf8 72. Re6 Rd5+ 73. Re5 Rd6 74. g6 Rb6 75. Kg5 Rb7 76. Kh6 Rb6 77. Kh7 Rb7+ 78. Kh8 Rb8 79. b6 Rc8 80. b7 Rb8 81. g7+ Kf7+ 82. Kh7 Rd8 83. g8=Q+ Rxg8 84. Rf5+ Ke6 85. Kxg8 Kxf5 86. b8=Q Ke4 87. Qb5 Kd4 88. Kf7 {Kd5} 1-0